[Event "WWRR IM-Group 2024"]
[Site "Wachtebeke"]
[Date "2024.02.15"]
[Round "9.5"]
[White "Ochs, Daniel Elias"]
[Black "Hauchamps, Maxime"]
[Result "1/2-1/2"]
[ECO "D30"]
[WhiteElo "2280"]
[BlackElo "2267"]
[Annotator "TA"]
[PlyCount "21"]
[EventDate "2024.02.12"]
[EventType "tourn"]
[EventCountry "BEL"]
[SourceTitle "playchess.com"]
[Source "ChessBase"]
[SourceQuality "1"]
[TimeControl "40/5400+30:900+30"]

{[%evp 9,21,8,10,4,9,5,4,10,23,0,9,8,22,0]} 1. d4 {[%emt 0:00:02]} d5 {[%emt 0:00:33]} 2. c4 {[%emt 0:00:04]} e6 {[%emt 0:00:05]} 3. Nf3 {[%emt 0:00:04]} Nf6 {[%emt 0:00:09]} 4. e3 {[%emt 0:00:03]} a6 {[%emt 0:01:05]} 5. a3 {[%emt 0:00:03]} Be7 {[%emt 0:03:22]} 6. b3 {[%emt 0:00:50]} O-O {[%emt 0:01:43]} 7. Bb2 {[%emt 0:00:16]} dxc4 {[%emt 0:02:43]} 8. Bxc4 {[%emt 0:00:19]} b5 {[%emt 0:00:12]} 9. Be2 {[%emt 0:00:03]} Bb7 {[%emt 0:01:30]} 10. O-O {[%emt 0:00:05]} Nbd7 {[%emt 0:05:05]} 11. Nbd2 {[%emt 0:00:41] Not much happened in this game.   Weighted Error Value: White=0.09 (flawless) /Black=0.07 (flawless) .  OK:         	White=1     	---} 1/2-1/2